{"text_format":"3","workbook":"xlsx","n_sheets":2,"sheets":["Tételes számla","Cég beállításai"],"not_rendered":{"images":1,"defined_names":27},"read":"whole","date_system":"1900"}

{"sheet":"Tételes számla","index":0,"n_rows":35,"n_cols":7,"rows_kept":35,"merged":[[1,3,2,4],[3,3,3,4],[4,3,4,4],[5,3,5,4],[23,1,23,3],[24,1,24,3],[25,1,25,3],[26,1,26,3]]}
[null,"SZÁMLA","0005"]
[null,{"$f":"TODAY()","v":"2022-04-07"},null,{"$f":"SzámlaÖsszesen","v":79.65},null," ","Cég beállításai"]
[null,"FIZETÉSI HATÁRIDŐ:",{"$f":"TODAY()+15","v":"2022-04-22"},null,null," "]
[null,"GYENES IZABELLA",null,"ADVENTURE WORKS"]
[null,"Fabrikam, Inc.",null,"Akácos út 234."]
[null,"Fő utca 123.",null,"9876 Mézesfa"]
[null,"Erdőmező, 1234"]
[null,"MENNYISÉG","MEGNEVEZÉS","EGYSÉGÁR","SOR ÖSSZEGE"]
[null,2,"Szerelvény",14.95,{"$f":"IFERROR(SzámlaRészletei[[#This Row],[EGYSÉGÁR]]*SzámlaRészletei[[#This Row],[MENNYISÉG]],\"\")","v":{"v":29.9,"d":"29.90"}}]
[null,5,"Alátét",9.95,{"$f":"IFERROR(SzámlaRészletei[[#This Row],[EGYSÉGÁR]]*SzámlaRészletei[[#This Row],[MENNYISÉG]],\"\")","v":49.75}]
[{"$nulls":4},{"$f":"IFERROR(SzámlaRészletei[[#This Row],[EGYSÉGÁR]]*SzámlaRészletei[[#This Row],[MENNYISÉG]],\"\")","v":0}]
[{"$nulls":4},{"$f":"IFERROR(SzámlaRészletei[[#This Row],[EGYSÉGÁR]]*SzámlaRészletei[[#This Row],[MENNYISÉG]],\"\")","v":0}]
[{"$nulls":4},{"$f":"IFERROR(SzámlaRészletei[[#This Row],[EGYSÉGÁR]]*SzámlaRészletei[[#This Row],[MENNYISÉG]],\"\")","v":0}]
[{"$nulls":4},{"$f":"IFERROR(SzámlaRészletei[[#This Row],[EGYSÉGÁR]]*SzámlaRészletei[[#This Row],[MENNYISÉG]],\"\")","v":0}]
[{"$nulls":4},{"$f":"IFERROR(SzámlaRészletei[[#This Row],[EGYSÉGÁR]]*SzámlaRészletei[[#This Row],[MENNYISÉG]],\"\")","v":0}]
[{"$nulls":4},{"$f":"IFERROR(SzámlaRészletei[[#This Row],[EGYSÉGÁR]]*SzámlaRészletei[[#This Row],[MENNYISÉG]],\"\")","v":0}]
[{"$nulls":4},{"$f":"IFERROR(SzámlaRészletei[[#This Row],[EGYSÉGÁR]]*SzámlaRészletei[[#This Row],[MENNYISÉG]],\"\")","v":0}]
[{"$nulls":4},{"$f":"IFERROR(SzámlaRészletei[[#This Row],[EGYSÉGÁR]]*SzámlaRészletei[[#This Row],[MENNYISÉG]],\"\")","v":0}]
[{"$nulls":4},{"$f":"IFERROR(SzámlaRészletei[[#This Row],[EGYSÉGÁR]]*SzámlaRészletei[[#This Row],[MENNYISÉG]],\"\")","v":0}]
[{"$nulls":4},{"$f":"IFERROR(SzámlaRészletei[[#This Row],[EGYSÉGÁR]]*SzámlaRészletei[[#This Row],[MENNYISÉG]],\"\")","v":0}]
[{"$nulls":4},{"$f":"IFERROR(SzámlaRészletei[[#This Row],[EGYSÉGÁR]]*SzámlaRészletei[[#This Row],[MENNYISÉG]],\"\")","v":0}]
[{"$nulls":4},{"$f":"IFERROR(SzámlaRészletei[[#This Row],[EGYSÉGÁR]]*SzámlaRészletei[[#This Row],[MENNYISÉG]],\"\")","v":0}]
[{"$nulls":4},{"$f":"IFERROR(SzámlaRészletei[[#This Row],[EGYSÉGÁR]]*SzámlaRészletei[[#This Row],[MENNYISÉG]],\"\")","v":0}]
[null,"Kedvezmény"]
[null,"Nettó összeg",null,null,{"$f":"SUM(SzámlaRészletei[SOR ÖSSZEGE])-E24","v":{"v":79.65,"d":"79.65 Ft"}}]
[null,"Adó"]
[null,{"$f":"REPT(Cégbeállítás_AzÖnCégénekRövidítése,LEN(Cégbeállítás_AzÖnCégénekRövidítése)>0) & \" Összeg\"","v":"HUF Összeg"},null,null,{"$f":"IFERROR(E25+E26, \"\")","v":{"v":79.65,"d":"79.65 Ft"}}]
[null,"FIZETÉSI ADATOK",null,null,"EGYÉB ADATOK"]
[null,"Kedvezményezett neve:",{"$f":" Cégbeállítás_BankiKedvezményezettNeve","v":"Adventure Works"},null,{"$f":"IFERROR(Cégbeállítás_AzÖnNeve,\"\")","v":"Barta Endre"}]
[null,"Bank neve:",{"$f":"Cégbeállítás_BankNév","v":"Woodgrove Bank"},null,{"$f":"IFERROR(\"Telefonszám: \" & Cégbeállítás_AzÖnTelefonszáma,\"\")","v":"Telefonszám: 55 / 555-150"}]
[null,"Bank címe:",{"$f":"Cégbeállítás_Bankcím","v":"9876 Mézesfa, Akácos út 234."},null,{"$f":"IFERROR(\"Faxszám: \" & Cégbeállítás_AzÖnFaxszáma,\"\")","v":"Faxszám: 55 / 555-151"}]
[null,"Számlaszám:",{"$f":"Cégbeállítás_Bankszámla","v":1234567},null,{"$f":"IFERROR(Cégbeállítás_AzÖnURLCíme,\"\")","v":"Adventure-Works.com"}]
[null,"SWIFT-kód",{"$f":"Cégbeállítás_BankSWIFTKód","v":9876543210},null,{"$f":"IFERROR(Cégbeállítás_AzÖnEMailCíme,\"\")","v":"konyveles@Adventure-Works.com"}]
[null,"Fizetési hivatkozás",{"$f":"SzámlaszámMegjelenítése","v":"0005"},null,{"$f":"IFERROR(IF(LEN(Client_PO),\"Contract/PO: \" & Client_PO,\"\"),\"\")","v":""}]
[null,{"$f":"UPPER(\"A megfelelő összeget banki átutalással vagy a következő kedvezményezett nevére kiállított csekkel kell befizetni: \" & Cégbeállítás_CsekkKedvezményezettje & \".\")","v":"A MEGFELELŐ ÖSSZEGET BANKI ÁTUTALÁSSAL VAGY A KÖVETKEZŐ KEDVEZMÉNYEZETT NEVÉRE KIÁLLÍTOTT CSEKKEL KELL BEFIZETNI: ADVENTURE WORKS."}]

{"sheet":"Cég beállításai","index":1,"n_rows":20,"n_cols":5,"rows_kept":20}
[null,"CÉG BEÁLLÍTÁSAI"]
[null,"KIÁLLÍTÓ CÉG ADATAI","ÉRTÉK",null,"Tételes számla"]
[null,"Név","Barta Endre"]
[null,"Cég neve","ADVENTURE WORKS"]
[null,"Cím 1. sora","Akácos út 234."]
[null,"Cím 2. sora","9876 Mézesfa"]
[null,"Cím 3. sora"]
[null,"Cím 4. sora"]
[null,"Cím 5. sora"]
[null,"Telefonszám","55 / 555-150"]
[null,"Faxszám","55 / 555-151"]
[null,"Webhely","Adventure-Works.com"]
[null,"E-mail-cím","konyveles@Adventure-Works.com"]
[null,"Pénznem kódja","HUF"]
[null,"Átutalás kedvezményezettje","Adventure Works"]
[null,"Bank neve","Woodgrove Bank"]
[null,"Bank címe","9876 Mézesfa, Akácos út 234."]
[null,"Számlaszám",1234567]
[null,"SWIFT-kód",9876543210]
[null,"A csekk kedvezményezettje legyen:","Adventure Works"]